bitfinex-derivatives/quotes_BTCF0:USTF0_20250930
["timestamp","ask_amount","ask_price","bid_price","bid_amount"]
[1759198753038,0.23872027,114470.0,114460.0,0.39723]
[1759198753243,0.23872027,114470.0,114460.0,0.65622479]
[1759198753742,0.91073506,114470.0,114460.0,0.02341]
[1759198754336,0.91079897,114470.0,114460.0,0.02341]
[1759198754844,1.70903897,114470.0,114460.0,0.02341]
[1759198756246,1.70903897,114470.0,114460.0,0.002]
[1759198756444,2.34191767,114470.0,114460.0,0.002]
[1759198759246,0.63872027,114470.0,114460.0,0.02482]
[1759198759441,1.70879897,114470.0,114460.0,0.02482]
[1759198760043,1.70879897,114470.0,114460.0,0.002]
[1759198760447,1.70879897,114470.0,114460.0,0.02516]
[1759198760650,2.06959897,114470.0,114460.0,0.02516]
[1759198762753,1.27159897,114470.0,114460.0,0.02516]
[1759198762959,2.34131767,114470.0,114460.0,0.002]
[1759198766563,1.79716027,114470.0,114460.0,0.002]
[1759198766763,2.34131767,114470.0,114460.0,0.002]
[1759198767167,1.54367767,114470.0,114460.0,0.002]
[1759198767356,2.34211767,114470.0,114460.0,0.002]
[1759198768062,2.34207767,114470.0,114460.0,0.002]
[1759198768262,2.34207767,114470.0,114460.0,0.02516]
[1759198769464,1.54367767,114470.0,114460.0,0.02516]
[1759198769763,1.98119767,114470.0,114460.0,0.02516]
[1759198769964,1.70911897,114470.0,114460.0,0.02516]
[1759198770261,0.78287767,114470.0,114460.0,0.02516]
[1759198770465,1.30879897,114470.0,114460.0,0.2972387]
[1759198770660,1.30919897,114470.0,114460.0,0.02516]
[1759198771063,1.58127767,114470.0,114460.0,0.002]
[1759198771365,1.94207767,114470.0,114460.0,0.002]
[1759198771565,1.97344973,114470.0,114460.0,0.002]
[1759198772360,0.27009233,114470.0,114460.0,0.02516]
[1759198772665,1.30927897,114470.0,114460.0,0.2972387]
[1759198772865,1.30923897,114470.0,114460.0,0.2972387]
[1759198773366,1.34061103,114470.0,114460.0,0.2972387]
[1759198774767,0.54217103,114470.0,114460.0,0.2972387]
[1759198774966,1.34009103,114470.0,114460.0,0.2972387]
[1759198775167,1.34049103,114470.0,114460.0,0.2972387]
[1759198775471,1.34049103,114470.0,114460.0,0.6580387]
[1759198775969,0.54217103,114470.0,114460.0,0.6580387]
[1759198776264,1.34037103,114470.0,114460.0,0.6580387]
[1759198776967,0.54217103,114470.0,114460.0,0.6580387]
[1759198777171,1.34033103,114470.0,114460.0,0.6580387]
[1759198777669,1.30895897,114470.0,114460.0,0.6580387]
[1759198778070,1.03680027,114470.0,114460.0,0.9431374]
[1759198778366,1.03680027,114470.0,114460.0,0.6710587]
[1759198778569,1.30847897,114470.0,114460.0,0.6710587]
[1759198778769,1.30887897,114470.0,114460.0,0.6710587]
[1759198780268,0.49807897,114470.0,114460.0,1.3431374]
[1759198780470,1.29603897,114470.0,114460.0,0.9431374]
[1759198781066,1.29603897,114470.0,114460.0,0.6710587]
[1759198782471,1.28733939,114470.0,114460.0,0.6710587]
[1759198783368,1.01518069,114470.0,114460.0,1.0304391]
[1759198783573,1.01522069,114470.0,114460.0,1.0304391]
[1759198783962,0.21730069,114470.0,114460.0,1.07748141]
[1759198784274,0.21730069,114470.0,114460.0,1.0304391]
[1759198784571,0.21730069,114470.0,114460.0,0.39898]
[1759198784877,0.48937939,114470.0,114460.0,0.9431374]
[1759198785474,0.48937939,114470.0,114460.0,0.99017971]
[1759198785774,0.50297939,114470.0,114460.0,0.99017971]
[1759198787170,0.21730069,114470.0,114460.0,0.99017971]
[1759198787375,0.48937939,114470.0,114460.0,0.99017971]
[1759198788372,0.21730069,114470.0,114460.0,0.99017971]
[1759198788576,0.21730069,114470.0,114460.0,1.0304391]
[1759198789171,0.21690069,114470.0,114460.0,0.9431374]
[1759198789377,0.21730069,114470.0,114460.0,0.9431374]
[1759198791280,0.23081069,114470.0,114460.0,0.9431374]
[1759198791675,0.50288939,114470.0,114460.0,0.9431374]
[1759198793982,0.23081069,114470.0,114460.0,0.9431374]
[1759198794281,0.50288939,114470.0,114460.0,0.9431374]
[1759198794883,0.23081069,114470.0,114460.0,0.9431374]
[1759198795079,0.50288939,114470.0,114460.0,0.9431374]
[1759198795274,0.13000059,114470.0,114460.0,1.3431374]
[1759198795479,0.08755206,114470.0,114460.0,1.74956011]
[1759198795682,0.08795206,114470.0,114460.0,1.74956011]
[1759198795880,0.08795206,114470.0,114460.0,1.47748141]
[1759198796176,0.17524616,114470.0,114460.0,1.47748141]
[1759198796383,0.17524616,114470.0,114460.0,1.4304391]
[1759198797468,0.0184,114470.0,114460.0,1.4304391]
[1759198797676,0.018,114470.0,114460.0,1.4304391]
[1759198797972,0.018,114470.0,114460.0,2.2286791]
[1759198798172,0.0184,114470.0,114460.0,2.2286791]
[1759198800881,0.0184,114470.0,114460.0,2.56356901]
[1759198801178,0.018,114470.0,114460.0,1.76532901]
[1759198801381,0.1052941,114470.0,114460.0,2.29141031]
[1759198801587,0.1056941,114470.0,114460.0,2.29141031]
[1759198801884,0.1052941,114470.0,114460.0,2.29141031]
[1759198802093,0.0184,114470.0,114460.0,2.29141031]
[1759198802284,0.0184,114470.0,114460.0,2.2285991]
[1759198802685,0.0184,114470.0,114460.0,2.5006778]
[1759198803282,0.0008,114490.0,114480.0,0.0921865]
[1759198803482,0.0880788,114490.0,114480.0,2.22541208]
[1759198803684,0.15717305,114500.0,114490.0,0.0872788]
[1759198803888,0.12894843,114500.0,114490.0,0.7489175]
[1759198804280,0.0872762,114500.0,114490.0,1.0209962]
[1759198804787,0.0876762,114500.0,114490.0,1.0209962]
[1759198805380,0.1216762,114500.0,114490.0,1.0209962]
[1759198806180,0.1431262,114500.0,114490.0,0.38305]
[1759198806381,0.3947149,114500.0,114490.0,1.4533287]
[1759198806581,0.3987149,114500.0,114490.0,1.4694487]
[1759198806782,0.3947149,114500.0,114490.0,0.38305]
[1759198807088,0.3997149,114500.0,114490.0,0.6721287]
[1759198807689,0.1276362,114500.0,114490.0,0.6721287]
[1759198807890,0.3997149,114500.0,114490.0,0.40005]
[1759198808188,0.3997149,114500.0,114490.0,0.6721287]
[1759198808387,0.47104294,114500.0,114490.0,0.6721287]
[1759198810590,0.19896424,114500.0,114490.0,0.6721287]
[1759198810792,0.47104294,114500.0,114490.0,0.6721287]
[1759198811592,0.16400424,114500.0,114490.0,0.7643075]
[1759198811885,0.0926762,114500.0,114490.0,1.4363862]
[1759198812093,0.0922762,114500.0,114490.0,1.4363862]
[1759198812291,0.0926762,114500.0,114490.0,1.1643075]
[1759198812694,0.0926762,114500.0,114490.0,1.4363862]
[1759198812896,0.0926762,114500.0,114490.0,1.1643075]
[1759198813192,0.0926762,114500.0,114490.0,1.4363862]
[1759198813694,0.0926762,114500.0,114490.0,0.8922288]
[1759198813992,0.0926762,114500.0,114490.0,1.4363862]
[1759198814194,0.0054,114500.0,114490.0,1.48344438]
[1759198814583,0.005,114500.0,114490.0,1.48344438]
[1759198814789,0.0054,114500.0,114490.0,1.48344438]
[1759198814990,0.0872606,114520.0,114510.0,0.1169336]
[1759198815295,0.0880606,114520.0,114510.0,1.820131]
[1759198815497,0.0872606,114520.0,114510.0,1.7328674]
[1759198815795,0.0876606,114520.0,114510.0,1.7328674]
[1759198816089,0.0872606,114520.0,114510.0,0.9346274]
[1759198816396,0.1241006,114520.0,114510.0,1.74025154]
[1759198816695,0.21912671,114520.0,114510.0,1.74525154]
[1759198816889,0.21912671,114520.0,114510.0,1.47352077]
[1759198817795,0.23931081,114520.0,114510.0,1.47352077]
[1759198819784,0.1156606,114520.0,114510.0,2.59331504]
[1759198819996,0.028,114520.0,114510.0,2.59331504]
[1759198820197,0.0284,114520.0,114510.0,2.59331504]
[1759198820589,0.028,114520.0,114510.0,2.59331504]
[1759198820794,0.028,114520.0,114510.0,2.59307504]
[1759198820795,0.0284,114520.0,114510.0,2.59307504]
[1759198820988,0.028,114520.0,114510.0,2.59307504]
[1759198821393,0.17100565,114540.0,114520.0,0.0872486]
[1759198821596,0.1919815,114540.0,114530.0,1.43053077]
[1759198821798,0.1911815,114540.0,114530.0,1.43053077]
[1759198821996,0.2128015,114540.0,114530.0,1.43053077]
[1759198822197,0.2132015,114540.0,114530.0,1.43053077]
[1759198822890,0.2132015,114540.0,114530.0,0.63253077]
[1759198823098,0.2132015,114540.0,114530.0,1.43045077]
[1759198823300,0.2442015,114540.0,114530.0,1.43045077]
[1759198824095,0.2132015,114540.0,114530.0,1.43045077]
[1759198824301,0.2502015,114540.0,114530.0,1.43621077]
[1759198824892,0.05757585,114540.0,114530.0,2.15598984]
[1759198825089,0.037,114540.0,114530.0,2.55598984]
[1759198825290,0.0374,114540.0,114530.0,2.55598984]
[1759198825495,0.037,114540.0,114530.0,2.55598984]
[1759198825691,0.0374,114540.0,114530.0,1.75830984]
[1759198825903,0.1246407,114540.0,114530.0,2.28453907]
[1759198826198,0.1246407,114540.0,114530.0,1.48657907]
[1759198826498,0.1246407,114540.0,114530.0,2.28453907]
[1759198826894,0.1246407,114540.0,114530.0,1.48657907]
[1759198827098,0.1246407,114540.0,114530.0,2.28441907]
[1759198827600,0.1246407,114540.0,114530.0,1.48657907]
[1759198827801,0.1246407,114540.0,114530.0,2.28437907]
[1759198828297,0.1246407,114540.0,114530.0,2.28425907]
[1759198828889,0.0876407,114540.0,114530.0,2.27825907]
[1759198829103,0.0896407,114540.0,114530.0,2.30025907]
[1759198829294,0.0876407,114540.0,114530.0,2.27825907]
[1759198829495,0.0876407,114540.0,114530.0,2.28225907]
[1759198829989,0.0876407,114540.0,114530.0,1.48457907]
[1759198830189,0.0876407,114540.0,114530.0,2.28205907]
[1759198831103,0.0004,114540.0,114530.0,2.28205907]
[1759198831301,0.0004,114540.0,114530.0,2.55378984]
[1759198831502,0.1007496,114550.0,114540.0,0.0872407]
[1759198831698,0.19207918,114560.0,114550.0,0.0872331]
[1759198831889,0.1014502,114560.0,114550.0,1.51704387]
[1759198832103,0.1006502,114560.0,114550.0,1.51704387]
[1759198832297,0.0876302,114560.0,114550.0,1.51704387]
[1759198832496,0.0872302,114560.0,114550.0,1.51704387]
[1759198833202,0.0896302,114560.0,114550.0,1.53304387]
[1759198833704,0.0876302,114560.0,114550.0,1.51704387]
[1759198834001,0.0004,114560.0,114550.0,1.51704387]
[1759198834395,0.0876255,114560.0,114550.0,0.71976387]
[1759198834600,0.5226655,114560.0,114550.0,0.3608]
[1759198834903,0.5266655,114560.0,114550.0,1.15968]
[1759198835105,0.5266655,114560.0,114550.0,1.43137077]
[1759198835296,0.5266655,114560.0,114550.0,1.51860387]
[1759198835701,0.5266655,114560.0,114550.0,1.51876387]
[1759198838199,0.5266655,114560.0,114550.0,1.51856387]
[1759198839305,0.5246655,114560.0,114550.0,1.53656387]
[1759198839603,0.1246655,114560.0,114550.0,1.53656387]
[1759198839803,0.1226655,114560.0,114550.0,1.51756387]
[1759198840004,0.1366655,114560.0,114550.0,1.51756387]
[1759198840202,0.1386655,114560.0,114550.0,1.54256387]
[1759198840799,0.1226655,114560.0,114550.0,1.51756387]
[1759198843804,0.1226655,114560.0,114550.0,1.2458331]
[1759198844007,0.1226655,114560.0,114550.0,1.51744387]
[1759198844207,0.14282395,114560.0,114550.0,1.51744387]
[1759198844708,0.14282395,114560.0,114550.0,0.3608]
[1759198844908,0.14282395,114560.0,114550.0,0.63253077]
[1759198845109,0.14282395,114560.0,114550.0,1.15824]
[1759198845609,0.14282395,114560.0,114550.0,1.42997077]
[1759198845908,0.81455472,114560.0,114550.0,0.3608]
[1759198847208,0.54282395,114560.0,114550.0,0.71976387]
[1759198849004,0.54282395,114560.0,114550.0,0.63253077]
[1759198851309,0.54282395,114560.0,114550.0,0.71976397]
[1759198851912,0.54282395,114560.0,114550.0,0.63253077]
[1759198854512,0.84592678,114560.0,114550.0,0.3608]
[1759198857718,0.89298487,114560.0,114550.0,0.3608]
[1759198859817,0.89298487,114560.0,114540.0,0.3608]
[1759198859818,0.1007532,114550.0,114540.0,0.3608]
[1759198860017,0.17388665,114550.0,114540.0,0.3608]
[1759198860512,0.22094474,114550.0,114540.0,0.3608]
[1759198860713,0.17388665,114550.0,114540.0,0.3608]
[1759198861102,0.17388665,114550.0,114540.0,0.3648]
[1759198861302,0.17388665,114550.0,114540.0,0.004]
[1759198861303,1.65796051,114550.0,114540.0,0.004]
[1759198861507,0.86228051,114550.0,114540.0,0.023]
[1759198861707,1.65888051,114550.0,114540.0,0.023]
[1759198862218,1.65884051,114550.0,114540.0,0.023]
[1759198862525,2.01964051,114550.0,114540.0,0.023]
[1759198862724,2.01976051,114550.0,114540.0,0.023]
[1759198863824,1.22308051,114550.0,114540.0,0.023]
[1759198864124,2.01976051,114550.0,114540.0,0.023]
[1759198864518,2.02016051,114550.0,114540.0,0.023]
[1759198865717,0.1223408,114540.0,114530.0,0.3608]
[1759198865921,1.24266554,114540.0,114530.0,0.3608]
[1759198866322,0.43558554,114540.0,114530.0,0.3608]
[1759198866521,1.23254554,114540.0,114530.0,0.3608]
[1759198867026,1.23354554,114540.0,114530.0,0.3738]
[1759198867420,1.24854554,114540.0,114530.0,0.3618]
[1759198867720,1.21719002,114540.0,114530.0,0.3618]
[1759198868422,0.42023002,114540.0,114530.0,0.3618]
[1759198868823,1.21699002,114540.0,114530.0,0.3618]
[1759198869024,1.21695002,114540.0,114530.0,0.3618]
[1759198869219,0.94517925,114540.0,114530.0,0.72077917]
[1759198869420,0.94517925,114540.0,114530.0,0.63353077]
[1759198869621,0.94557925,114540.0,114530.0,0.63353077]
[1759198869822,0.14889925,114540.0,114530.0,0.3618]
[1759198870230,0.94625925,114540.0,114530.0,0.3618]
[1759198870429,0.94625925,114540.0,114530.0,0.001]
[1759198870930,0.14889925,114540.0,114530.0,0.001]
[1759198871230,1.21799002,114540.0,114530.0,0.001]
[1759198871932,0.94625925,114540.0,114530.0,0.001]
[1759198873630,1.21799002,114540.0,114530.0,0.001]
[1759198874829,1.61799002,114540.0,114530.0,0.001]
[1759198875034,0.1226937,114510.0,114500.0,0.40785818]
[1759198875429,0.1226937,114510.0,114500.0,0.3608]
[1759198875936,0.1226937,114510.0,114500.0,0.63253077]
[1759198876330,0.1226937,114510.0,114500.0,0.63263629]
[1759198876634,0.1246937,114510.0,114500.0,0.65063629]
[1759198877124,0.39452999,114510.0,114500.0,0.63463629]
[1759198877637,0.39452999,114510.0,114500.0,0.72190759]
[1759198878237,0.46556559,114510.0,114500.0,0.72190759]
[1759198881626,0.1937293,114510.0,114500.0,0.72190759]
[1759198881828,0.46556559,114510.0,114500.0,0.72190759]
[1759198882038,0.1937293,114510.0,114500.0,0.72190759]
[1759198882233,0.1937293,114510.0,114500.0,0.99374388]
[1759198882838,0.46556559,114510.0,114500.0,0.72190759]
[1759198884834,0.1937293,114510.0,114500.0,0.72190759]
[1759198885639,0.1937293,114510.0,114500.0,0.99374388]
[1759198887739,0.1937293,114510.0,114500.0,1.04080206]
[1759198887942,0.46556559,114510.0,114500.0,0.40985818]
[1759198888142,0.46556559,114510.0,114500.0,0.3628]
[1759198888338,0.1937293,114510.0,114500.0,0.3628]
[1759198888542,0.46556559,114510.0,114500.0,0.002]
[1759198888938,0.1937293,114510.0,114500.0,0.002]
[1759198889138,0.4857505,114510.0,114500.0,0.002]
[1759198890844,1.2837505,114510.0,114500.0,0.002]
[1759198894747,1.2837505,114510.0,114500.0,0.3628]
[1759198894938,0.4857505,114510.0,114500.0,0.4500713]
[1759198895141,1.2834705,114510.0,114500.0,0.4500713]
[1759198895449,1.2834705,114510.0,114500.0,0.3628]
[1759198898051,0.12665051,114510.0,114500.0,0.72190759]
[1759198898241,0.21391421,114510.0,114500.0,0.72190759]
[1759198898443,0.60767421,114510.0,114500.0,0.72190759]
[1759198898747,0.8799105,114510.0,114500.0,0.72190759]
[1759198899351,1.01163421,114510.0,114500.0,0.72190759]
[1759198899648,1.2834705,114510.0,114500.0,0.72190759]
[1759198899955,1.2834705,114510.0,114500.0,0.63463629]
[1759198900645,0.1068656,114510.0,114500.0,1.66558017]
[1759198900853,0.0848056,114510.0,114500.0,1.44080206]
[1759198901149,0.1716692,114510.0,114500.0,1.35353076]
[1759198901344,0.1720692,114510.0,114500.0,1.35353076]
[1759198901552,0.1720692,114510.0,114500.0,1.44080206]
[1759198901850,0.1720692,114510.0,114500.0,1.04080206]
[1759198904353,0.1720692,114510.0,114500.0,1.83828206]
[1759198905051,0.1720692,114510.0,114500.0,1.83816206]
[1759198906051,0.1720692,114510.0,114500.0,1.04080206]
[1759198906253,0.1720692,114510.0,114500.0,1.83796206]
[1759198906546,0.1949192,114510.0,114500.0,0.95353076]
[1759198906745,0.46675549,114510.0,114500.0,0.68169447]
[1759198906951,0.1949192,114510.0,114500.0,0.95353076]
[1759198907853,0.1949192,114510.0,114500.0,0.90647258]
[1759198907854,0.21512428,114510.0,114500.0,0.90647258]
[1759198908045,0.21512428,114510.0,114500.0,0.99374388]
[1759198911655,0.21512428,114510.0,114500.0,1.04080206]
[1759198912353,0.21512386,114510.0,114500.0,0.99374388]
[1759198912955,0.48696015,114510.0,114500.0,0.3628]
[1759198913154,0.88696015,114510.0,114500.0,0.002]
[1759198915252,0.61512386,114510.0,114500.0,0.3628]
[1759198915557,0.88696015,114510.0,114500.0,0.3628]
[1759198916057,0.61512386,114510.0,114500.0,0.3628]
[1759198916257,0.88696015,114510.0,114500.0,0.3628]
[1759198919854,1.68396015,114510.0,114500.0,0.3628]
[1759198921861,1.95579644,114510.0,114500.0,0.002]
[1759198922661,0.88696015,114510.0,114500.0,0.002]
[1759198922859,0.88696015,114510.0,114500.0,0.3628]
[1759198923161,1.68352015,114510.0,114500.0,0.4500713]
[1759198923859,1.68352015,114510.0,114500.0,0.3628]
[1759198924160,0.88696015,114510.0,114500.0,0.3628]
[1759198924463,1.68352015,114510.0,114500.0,0.3628]
[1759198924959,0.88696015,114510.0,114500.0,0.3628]
[1759198925159,1.68348015,114510.0,114500.0,0.3628]
[1759198926360,0.88696015,114510.0,114500.0,0.3628]
[1759198926556,1.68352015,114510.0,114500.0,0.3628]
[1759198926757,1.68352015,114510.0,114500.0,0.4500713]
[1759198929357,0.88696015,114510.0,114500.0,0.4500713]
[1759198929657,1.68352015,114510.0,114500.0,0.4500713]
[1759198929965,0.88696015,114510.0,114500.0,0.4500713]
[1759198930162,1.68352015,114510.0,114500.0,0.4500713]
[1759198930559,0.88696015,114510.0,114500.0,0.4500713]
[1759198930765,1.68352015,114510.0,114500.0,0.4500713]
[1759198930966,0.88696015,114510.0,114500.0,0.4500713]
[1759198931265,1.28352025,114510.0,114500.0,0.72190759]
[1759198931464,1.28312025,114510.0,114500.0,0.72190759]
[1759198931861,1.28352025,114510.0,114500.0,0.72190759]
[1759198933370,1.28352025,114510.0,114500.0,0.4500713]
[1759198933566,1.28352025,114510.0,114500.0,0.72190759]
[1759198934168,1.28352025,114510.0,114500.0,0.76896577]
[1759198934566,0.48696025,114510.0,114500.0,0.76896577]
[1759198934869,1.28352025,114510.0,114500.0,0.76896577]
[1759198935275,1.28352025,114510.0,114500.0,1.04080206]
[1759198935774,0.48696025,114510.0,114500.0,1.04080206]
[1759198936071,1.28352025,114510.0,114500.0,1.04080206]
[1759198936261,0.48696025,114510.0,114500.0,1.04080206]
[1759198936466,1.28352025,114510.0,114500.0,0.76896577]
[1759198937175,0.48696025,114510.0,114500.0,0.76896577]
[1759198937378,1.28352025,114510.0,114500.0,0.76896577]
[1759198938275,1.01168396,114510.0,114500.0,0.76896678]
[1759198943380,1.01168396,114510.0,114500.0,0.49712948]
[1759198947784,1.01168396,114510.0,114500.0,0.4500713]
[1759198949287,0.21512396,114510.0,114500.0,0.4500713]
[1759198949681,1.01164396,114510.0,114500.0,0.4500713]
[1759198950190,0.21512396,114510.0,114500.0,0.4500713]
[1759198950382,1.01164396,114510.0,114500.0,0.4500713]
[1759198952591,1.01164396,114510.0,114500.0,0.3628]
[1759198953884,0.21512396,114510.0,114500.0,0.3628]
[1759198954089,1.01160396,114510.0,114500.0,0.3628]
[1759198954490,1.01120396,114510.0,114500.0,0.6346373]
[1759198954690,1.01160396,114510.0,114500.0,0.6346373]
[1759198955084,0.12746026,114510.0,114500.0,0.7219086]
[1759198955290,0.12786026,114510.0,114500.0,1.16896678]
[1759198955589,0.12746026,114510.0,114500.0,1.16896678]
[1759198955783,0.12786026,114510.0,114500.0,1.16896678]
[1759198956592,0.10731436,114510.0,114500.0,1.16896678]
[1759198956996,0.10731436,114510.0,114500.0,1.96544678]
[1759198957696,0.10731436,114510.0,114500.0,1.98119981]
[1759198959293,0.10731436,114510.0,114500.0,2.1902259]
[1759198959294,0.07061436,114510.0,114500.0,2.1902259]
[1759198959499,0.07021436,114510.0,114500.0,1.85303711]
[1759198959691,0.1225266,114520.0,114510.0,0.1047237]
[1759198960001,0.1225266,114520.0,114510.0,1.05630642]
[1759198960198,0.10362602,114520.0,114510.0,1.07200951]
[1759198960798,0.10402602,114520.0,114510.0,1.07200951]
[1759198961000,0.10802602,114520.0,114510.0,1.07200951]
[1759198961197,0.10802602,114520.0,114510.0,1.86844951]
[1759198961398,0.10402602,114520.0,114510.0,1.86844951]
[1759198961599,0.10502602,114520.0,114510.0,1.08700951]
[1759198961792,0.10502602,114520.0,114510.0,1.88344951]
[1759198962398,0.10502602,114520.0,114510.0,1.8206383]
[1759198962794,0.10502602,114520.0,114510.0,1.0241983]
[1759198963001,0.10502602,114520.0,114510.0,1.8207183]
[1759198965204,0.10502602,114520.0,114510.0,1.88352951]
[1759198965797,0.10502602,114520.0,114510.0,1.88340951]
[1759198966097,0.10502602,114520.0,114510.0,1.89244047]
[1759198967406,0.10502602,114520.0,114510.0,1.08700951]
[1759198967599,0.19228202,114520.0,114510.0,1.08700951]
[1759198967801,0.19228202,114520.0,114510.0,1.8205583]
[1759198968399,0.10502602,114520.0,114510.0,1.8205583]
[1759198968603,0.10502602,114520.0,114510.0,1.82910594]
[1759198969510,0.19228202,114520.0,114510.0,0.752361]
[1759198969807,0.46411932,114520.0,114510.0,0.44029326]
[1759198970200,0.46411932,114520.0,114510.0,0.39326]
[1759198970402,0.46411932,114520.0,114510.0,0.4805237]
[1759198970800,0.12515563,114520.0,114510.0,0.752361]
[1759198971408,0.12515563,114520.0,114510.0,0.4805237]
[1759198971609,0.21241163,114520.0,114510.0,0.4805237]
[1759198972113,0.12515563,114520.0,114510.0,0.4805237]
[1759198972514,0.12515563,114520.0,114510.0,0.752361]
[1759198973515,0.10502602,114520.0,114510.0,1.07123156]
[1759198973719,0.08312602,114520.0,114510.0,1.07123156]
[1759198974119,0.08272602,114520.0,114510.0,1.59583426]
[1759198974414,0.08312602,114520.0,114510.0,1.59583426]
[1759198974608,0.19142202,114520.0,114510.0,0.79939426]
[1759198974811,0.19142202,114520.0,114510.0,1.59579426]
[1759198975808,0.19142202,114520.0,114510.0,0.79939426]
[1759198976011,0.19142202,114520.0,114510.0,1.59595426]
[1759198976614,0.19142202,114520.0,114510.0,1.86775156]
[1759198977120,0.10416602,114520.0,114510.0,1.86775156]
[1759198978721,0.10416602,114520.0,114510.0,1.8207183]
[1759198981121,0.06975602,114520.0,114510.0,2.2207183]
[1759198981417,0.0014,114520.0,114510.0,2.28352951]
[1759198981612,0.03489,114550.0,114540.0,0.1047008]
[1759198981817,0.1211166,114560.0,114550.0,0.1046932]
[1759198982011,0.14123986,114560.0,114550.0,0.6500973]
[1759198982216,0.1211166,114560.0,114550.0,0.6500973]
[1759198982416,0.1215166,114560.0,114550.0,0.6500973]
[1759198982618,0.19035812,114560.0,114550.0,0.6500973]
[1759198982919,0.18995812,114560.0,114550.0,1.4465773]
[1759198983222,0.19035812,114560.0,114550.0,1.4495773]
[1759198983420,0.18995812,114560.0,114550.0,1.4465773]
[1759198983720,0.21935812,114560.0,114550.0,0.6530973]
[1759198983922,0.21935812,114560.0,114550.0,1.4495373]
[1759198984918,0.21935812,114560.0,114550.0,0.6530973]
[1759198985123,0.49119542,114560.0,114550.0,1.17806]
[1759198985312,0.21935812,114560.0,114550.0,0.38126]
[1759198987728,0.23945513,114560.0,114550.0,0.38126]
[1759198991126,0.91129243,114560.0,114550.0,0.38126]
[1759198994029,0.63945513,114560.0,114550.0,0.38126]
[1759198994235,0.91129243,114560.0,114550.0,0.4684932]
[1759198994632,0.91129243,114560.0,114550.0,0.38126]
[1759198996730,0.23945513,114560.0,114550.0,0.7403304]
[1759198996935,0.21935812,114560.0,114550.0,0.7403304]
[1759198997129,0.21935812,114560.0,114550.0,1.1403304]
[1759198997130,0.09784152,114560.0,114550.0,1.1403304]
[1759198997336,0.0294,114560.0,114550.0,1.4121677]
[1759198997526,0.01285,114580.0,114570.0,0.0872179]
[1759198997731,0.01285,114580.0,114570.0,0.9916925]
[1759198997924,0.03294084,114580.0,114570.0,0.9916925]
[1759198998129,0.05637084,114580.0,114570.0,1.7888525]
[1759198998432,0.14358114,114580.0,114570.0,1.7888525]
[1759198998628,0.14358114,114580.0,114570.0,1.7016746]
[1759198999026,0.14458114,114580.0,114570.0,1.4368373]
[1759198999229,0.14458114,114580.0,114570.0,0.6396373]
[1759198999532,0.14458114,114580.0,114570.0,1.4367173]
[1759198999734,0.14358114,114580.0,114570.0,1.4297173]
[1759199000233,0.21384779,114580.0,114570.0,1.7007935]
[1759199000734,0.21584779,114580.0,114570.0,1.7007935]
[1759199002734,0.21584779,114580.0,114570.0,0.9037135]
[1759199002935,0.21584779,114580.0,114570.0,1.7009135]
[1759199003237,0.21584779,114580.0,114570.0,1.7009935]
[1759199003435,0.21584779,114580.0,114570.0,0.9037135]
[1759199003636,0.21584779,114580.0,114570.0,1.7012735]
[1759199004236,0.21584779,114580.0,114570.0,1.7013935]
[1759199005637,0.21584779,114580.0,114570.0,1.42993675]
[1759199005841,0.21584779,114580.0,114570.0,1.42981675]
[1759199006438,0.21584779,114580.0,114570.0,1.7012735]
[1759199009145,0.21584779,114580.0,114570.0,1.7011535]
[1759199009840,0.21584779,114580.0,114570.0,0.63225675]
[1759199010046,0.21584779,114580.0,114570.0,1.42969675]
[1759199010244,0.21584779,114580.0,114570.0,0.63225675]
[1759199010445,0.21584779,114580.0,114570.0,1.1582]
[1759199010646,0.21584779,114580.0,114570.0,1.42965675]
[1759199011140,0.21584779,114580.0,114570.0,1.42961675]
[1759199011947,0.21584779,114580.0,114570.0,0.63225675]
[1759199012153,0.21584779,114580.0,114570.0,1.42965675]
[1759199012548,0.48730454,114580.0,114570.0,0.63225675]
[1759199012737,0.1213879,114570.0,114560.0,1.15808]
[1759199012940,0.41293549,114570.0,114560.0,1.42953675]
[1759199013549,0.14147874,114570.0,114560.0,1.42953675]
[1759199013747,0.41293549,114570.0,114560.0,1.51676225]
[1759199013949,0.41293549,114570.0,114560.0,1.51976225]
[1759199014849,0.41293549,114570.0,114560.0,1.53876225]
[1759199015044,0.41293549,114570.0,114560.0,1.810219]
[1759199015247,0.1213879,114570.0,114560.0,1.810219]
[1759199016843,0.03417,114570.0,114560.0,1.2673055]
[1759199017045,0.03417,114570.0,114560.0,1.810219]
[1759199018443,0.39284475,114570.0,114560.0,0.4700256]
[1759199018645,0.39284475,114570.0,114560.0,1.8107391]
[1759199019057,0.121388,114570.0,114560.0,1.8107391]
[1759199019246,0.39284475,114570.0,114560.0,1.8107391]
[1759199019551,0.39284475,114570.0,114560.0,1.53928235]
[1759199019947,0.39284475,114570.0,114560.0,1.2678256]
[1759199020250,0.4129532,114570.0,114560.0,1.53916235]
[1759199020445,0.8129532,114570.0,114560.0,0.38482]
[1759199020651,0.8129532,114570.0,114560.0,1.18282]
[1759199020851,0.8129532,114570.0,114560.0,1.45427675]
[1759199021050,0.8129532,114570.0,114560.0,0.38482]
[1759199021346,0.8129532,114570.0,114560.0,0.65627675]
[1759199021548,0.8129532,114570.0,114560.0,0.74350245]
[1759199021751,0.54149645,114570.0,114560.0,0.74350245]
[1759199021949,0.4129532,114570.0,114560.0,0.74350245]
[1759199022550,0.4129532,114570.0,114560.0,0.65627675]
[1759199022752,0.14149645,114570.0,114560.0,0.65627675]
[1759199023052,0.4129532,114570.0,114560.0,0.65627675]
[1759199023252,0.05427845,114570.0,114560.0,1.0149592]
[1759199023555,0.1001981,114570.0,114560.0,1.0149592]
[1759199023749,0.1005981,114570.0,114560.0,1.0149592]
[1759199023946,0.01298,114570.0,114560.0,1.73346599]
[1759199024261,0.08311665,114580.0,114570.0,0.0872181]
[1759199024450,0.10324169,114580.0,114570.0,1.7894116]
[1759199024956,0.19085209,114580.0,114570.0,1.7894116]
[1759199025455,0.19085209,114580.0,114570.0,1.2624981]
[1759199025657,0.19285209,114580.0,114570.0,1.8054116]
[1759199027051,0.19285209,114580.0,114570.0,1.85246164]
[1759199027850,0.19285209,114580.0,114570.0,1.8054116]
[1759199030356,0.19285209,114580.0,114570.0,2.1662116]
[1759199033659,0.19285209,114580.0,114570.0,2.1656116]
[1759199034160,0.19285209,114580.0,114570.0,1.3677316]
[1759199034357,0.19285209,114580.0,114570.0,2.1654916]
[1759199035161,0.19285209,114580.0,114570.0,2.1656116]
[1759199035459,0.21580209,114580.0,114570.0,0.8248181]
[1759199035663,0.21580209,114580.0,114570.0,2.1656116]
[1759199036163,0.21580209,114580.0,114570.0,1.09627485]
[1759199036457,0.21580209,114580.0,114570.0,1.00905675]
[1759199036971,0.48725884,114580.0,114570.0,1.80701675]
[1759199038060,0.21580209,114580.0,114570.0,1.80701675]